[Event "Titled Tuesday Blitz February 07 Early 2023"]
[White "Dinu, Dumitru-Daniel"]
[Black "Tymrakiewicz, Rafal"]
[WhiteFideId "1208403"]
[BlackFideId "1108832"]
[WhiteElo "2203"]
[BlackElo "2144"]
[Result "0-1"]
[Round "10"]
[TimeControl "180+2"]
[Date "2023.02.07"]
[WhiteClock "0:01:57"]
[BlackClock "0:02:28"]

1. e4 {[%clk 0:03:00]}  Nf6 {[%clk 0:03:00]} 2. e5 {[%clk 0:03:00]}  Nd5 {[%clk 0:03:00]} 3. d4 {[%clk 0:03:00]}  d6 {[%clk 0:03:00]} 4. Nf3 {[%clk 0:03:01]}  g6 {[%clk 0:03:00]} 5. c4 {[%clk 0:02:59]}  Nb6 {[%clk 0:03:00]} 6. h3 {[%clk 0:02:58]}  Bg7 {[%clk 0:03:00]} 7. exd6 {[%clk 0:02:56]}  cxd6 {[%clk 0:03:00]} 8. Nc3 {[%clk 0:02:56]}  O-O {[%clk 0:03:01]} 9. Be3 {[%clk 0:02:55]}  Nc6 {[%clk 0:03:01]} 10. Be2 {[%clk 0:02:54]}  d5 {[%clk 0:03:01]} 11. c5 {[%clk 0:02:53]}  Nc4 {[%clk 0:03:02]} 12. Bxc4 {[%clk 0:02:53]}  dxc4 {[%clk 0:03:03]} 13. O-O {[%clk 0:02:53]}  Bf5 {[%clk 0:03:01]} 14. d5 {[%clk 0:02:52]}  Nb4 {[%clk 0:03:00]} 15. Nd4 {[%clk 0:02:43]}  Bd3 {[%clk 0:02:57]} 16. Re1 {[%clk 0:02:41]}  Nxd5 {[%clk 0:02:56]} 17. Nxd5 {[%clk 0:02:30]}  Qxd5 {[%clk 0:02:57]} 18. Nf3 {[%clk 0:02:30]}  Bxb2 {[%clk 0:02:54]} 19. Rb1 {[%clk 0:02:29]}  c3 {[%clk 0:02:39]} 20. Bh6 {[%clk 0:02:18]}  Rfd8 {[%clk 0:02:37]} 21. Re5 {[%clk 0:02:00]}  c2 {[%clk 0:02:28]} 22. Rxd5 {[%clk 0:01:57]}  cxd1=Q+ {[%clk 0:02:28]} 23. Rxd1 {[%clk 0:01:57]}  Rxd5 {[%clk 0:02:28]} 0-1


[Site "https://www.chess.com"]

[Event "Titled Tuesday Blitz February 07 Early 2023"]
[White "Khokhlova, Daria"]
[Black "Cepo, Toni"]
[WhiteFideId "24182729"]
[BlackFideId "4675916"]
[WhiteElo "2111"]
[BlackElo "2145"]
[Result "0-1"]
[Round "10"]
[TimeControl "180+2"]
[Date "2023.02.07"]
[WhiteClock "0:00:46"]
[BlackClock "0:02:05"]

1. d4 {[%clk 0:03:00]}  Nf6 {[%clk 0:02:59]} 2. c4 {[%clk 0:03:00]}  e6 {[%clk 0:02:58]} 3. g3 {[%clk 0:02:51]}  d5 {[%clk 0:02:58]} 4. Nf3 {[%clk 0:02:50]}  Bb4+ {[%clk 0:02:58]} 5. Bd2 {[%clk 0:02:50]}  Be7 {[%clk 0:02:59]} 6. Bg2 {[%clk 0:02:49]}  O-O {[%clk 0:02:59]} 7. O-O {[%clk 0:02:50]}  c6 {[%clk 0:02:58]} 8. Qc2 {[%clk 0:02:49]}  Nbd7 {[%clk 0:02:58]} 9. Rd1 {[%clk 0:02:49]}  b6 {[%clk 0:02:57]} 10. b3 {[%clk 0:02:47]}  Ba6 {[%clk 0:02:56]} 11. Bf4 {[%clk 0:02:38]}  Rc8 {[%clk 0:02:52]} 12. Nbd2 {[%clk 0:02:19]}  c5 {[%clk 0:02:40]} 13. Qb2 {[%clk 0:02:13]}  cxd4 {[%clk 0:02:37]} 14. Qxd4 {[%clk 0:01:37]}  Bc5 {[%clk 0:02:35]} 15. Qb2 {[%clk 0:01:36]}  Qe7 {[%clk 0:02:29]} 16. cxd5 {[%clk 0:01:22]}  Nxd5 {[%clk 0:02:24]} 17. Ne4 {[%clk 0:01:12]}  Nxf4 {[%clk 0:02:20]} 18. Nxc5 {[%clk 0:01:04]}  Nxe2+ {[%clk 0:02:15]} 19. Kh1 {[%clk 0:00:59]}  Nxc5 {[%clk 0:02:10]} 20. Bf1 {[%clk 0:00:46]}  Qf6 {[%clk 0:02:05]} 0-1


[Site "https://www.chess.com"]

[Event "Titled Tuesday Blitz February 07 Early 2023"]
[White "Ronka, Erik"]
[Black "Shapiro, Viktor"]
[WhiteFideId "505080"]
[BlackFideId "4175700"]
[WhiteElo "2276"]
[BlackElo "2192"]
[Result "0-1"]
[Round "10"]
[TimeControl "180+2"]
[Date "2023.02.07"]
[WhiteClock "0:00:03"]
[BlackClock "0:00:17"]

1. d4 {[%clk 0:03:00]}  Nf6 {[%clk 0:03:00]} 2. c4 {[%clk 0:03:01]}  e6 {[%clk 0:02:58]} 3. Nc3 {[%clk 0:03:01]}  c5 {[%clk 0:02:57]} 4. d5 {[%clk 0:03:00]}  exd5 {[%clk 0:02:57]} 5. cxd5 {[%clk 0:03:01]}  d6 {[%clk 0:02:58]} 6. e4 {[%clk 0:03:02]}  g6 {[%clk 0:02:58]} 7. Nge2 {[%clk 0:03:00]}  Bg7 {[%clk 0:02:59]} 8. Ng3 {[%clk 0:03:01]}  O-O {[%clk 0:02:59]} 9. Be2 {[%clk 0:03:01]}  a6 {[%clk 0:03:00]} 10. a4 {[%clk 0:03:02]}  Re8 {[%clk 0:03:00]} 11. O-O {[%clk 0:03:03]}  Nbd7 {[%clk 0:02:59]} 12. f3 {[%clk 0:03:03]}  Rb8 {[%clk 0:02:59]} 13. Bg5 {[%clk 0:03:02]}  h6 {[%clk 0:02:59]} 14. Be3 {[%clk 0:03:03]}  h5 {[%clk 0:02:58]} 15. Nh1 {[%clk 0:03:03]}  Ne5 {[%clk 0:02:56]} 16. Nf2 {[%clk 0:03:03]}  Bd7 {[%clk 0:02:46]} 17. a5 {[%clk 0:02:55]}  b5 {[%clk 0:02:44]} 18. axb6 {[%clk 0:02:55]}  Rxb6 {[%clk 0:02:45]} 19. Qd2 {[%clk 0:02:55]}  Qb8 {[%clk 0:02:43]} 20. Rab1 {[%clk 0:02:54]}  Bb5 {[%clk 0:02:37]} 21. Nxb5 {[%clk 0:02:48]}  axb5 {[%clk 0:02:37]} 22. b3 {[%clk 0:02:48]}  Ra6 {[%clk 0:02:34]} 23. h3 {[%clk 0:02:39]}  h4 {[%clk 0:02:21]} 24. f4 {[%clk 0:02:34]}  Ned7 {[%clk 0:02:21]} 25. Bf3 {[%clk 0:02:34]}  Qa7 {[%clk 0:02:09]} 26. Kh2 {[%clk 0:02:23]}  Ra2 {[%clk 0:02:09]} 27. Qd3 {[%clk 0:02:22]}  Qa5 {[%clk 0:01:59]} 28. Rfd1 {[%clk 0:01:39]}  Qb4 {[%clk 0:01:24]} 29. Bd2 {[%clk 0:01:25]}  Qa3 {[%clk 0:01:12]} 30. Be1 {[%clk 0:01:14]}  Bh6 {[%clk 0:01:02]} 31. Bd2 {[%clk 0:01:00]}  c4 {[%clk 0:01:02]} 32. Qd4 {[%clk 0:00:54]}  Qc5 {[%clk 0:00:55]} 33. Be3 {[%clk 0:00:39]}  c3 {[%clk 0:00:38]} 34. Qd3 {[%clk 0:00:30]}  c2 {[%clk 0:00:32]} 35. Bxc5 {[%clk 0:00:27]}  Bxf4+ {[%clk 0:00:31]} 36. Kh1 {[%clk 0:00:27]}  Nxc5 {[%clk 0:00:32]} 37. Qf1 {[%clk 0:00:21]}  cxb1=Q {[%clk 0:00:31]} 38. Rxb1 {[%clk 0:00:20]}  Bg3 {[%clk 0:00:22]} 39. Nd3 {[%clk 0:00:17]}  Ncxe4 {[%clk 0:00:19]} 40. Ra1 {[%clk 0:00:10]}  Rd2 {[%clk 0:00:19]} 41. Rd1 {[%clk 0:00:09]}  Rxd3 {[%clk 0:00:17]} 42. Rxd3 {[%clk 0:00:10]}  Nf2+ {[%clk 0:00:17]} 43. Kg1 {[%clk 0:00:10]}  Nxd3 {[%clk 0:00:17]} 44. Be2 {[%clk 0:00:06]}  Nf4 {[%clk 0:00:17]} 45. Qd1 {[%clk 0:00:01]}  Rxe2 {[%clk 0:00:17]} 46. Kf1 {[%clk 0:00:02]}  Rf2+ {[%clk 0:00:16]} 47. Kg1 {[%clk 0:00:02]}  Rxg2+ {[%clk 0:00:17]} 48. Kf1 {[%clk 0:00:03]}  Rf2+ {[%clk 0:00:16]} 49. Kg1 {[%clk 0:00:03]}  Nxh3+ {[%clk 0:00:17]} 50. Kh1 {[%clk 0:00:03]}  Rh2# {[%clk 0:00:17]} 0-1


[Site "https://www.chess.com"]

[Event "Titled Tuesday Blitz February 07 Early 2023"]
[White "Zacurdajev, Dmitry"]
[Black "Karttunen, Mika"]
[WhiteFideId "4196309"]
[BlackFideId "502081"]
[WhiteElo "2273"]
[BlackElo "2490"]
[Result "1-0"]
[Round "10"]
[TimeControl "180+2"]
[Date "2023.02.07"]
[WhiteClock "0:00:09"]
[BlackClock "0:00:29"]

1. d4 {[%clk 0:03:00]}  Nf6 {[%clk 0:02:58]} 2. c4 {[%clk 0:03:01]}  g6 {[%clk 0:02:58]} 3. Nc3 {[%clk 0:03:01]}  Bg7 {[%clk 0:02:56]} 4. e4 {[%clk 0:03:02]}  d6 {[%clk 0:02:57]} 5. Nf3 {[%clk 0:03:02]}  O-O {[%clk 0:02:57]} 6. Be2 {[%clk 0:03:03]}  e5 {[%clk 0:02:57]} 7. O-O {[%clk 0:03:04]}  Nc6 {[%clk 0:02:57]} 8. d5 {[%clk 0:03:04]}  Ne7 {[%clk 0:02:58]} 9. Ne1 {[%clk 0:03:04]}  Nd7 {[%clk 0:02:57]} 10. Be3 {[%clk 0:03:04]}  f5 {[%clk 0:02:57]} 11. f3 {[%clk 0:03:04]}  f4 {[%clk 0:02:57]} 12. Bf2 {[%clk 0:03:05]}  g5 {[%clk 0:02:58]} 13. b4 {[%clk 0:03:06]}  h5 {[%clk 0:02:55]} 14. c5 {[%clk 0:03:06]}  Ng6 {[%clk 0:02:52]} 15. c6 {[%clk 0:03:06]}  Nf6 {[%clk 0:02:48]} 16. cxb7 {[%clk 0:03:05]}  Bxb7 {[%clk 0:02:48]} 17. Rc1 {[%clk 0:03:01]}  a6 {[%clk 0:02:47]} 18. b5 {[%clk 0:03:00]}  a5 {[%clk 0:02:47]} 19. Na4 {[%clk 0:03:01]}  Nd7 {[%clk 0:02:41]} 20. b6 {[%clk 0:02:51]}  cxb6 {[%clk 0:02:35]} 21. Qb3 {[%clk 0:02:45]}  Ba6 {[%clk 0:01:54]} 22. Bxa6 {[%clk 0:02:39]}  Rxa6 {[%clk 0:01:54]} 23. Qb5 {[%clk 0:02:39]}  Nb8 {[%clk 0:01:53]} 24. Bxb6 {[%clk 0:02:36]}  Qd7 {[%clk 0:01:47]} 25. Qxd7 {[%clk 0:02:23]}  Nxd7 {[%clk 0:01:45]} 26. Rc6 {[%clk 0:02:07]}  Nxb6 {[%clk 0:01:30]} 27. Nxb6 {[%clk 0:02:07]}  Rb8 {[%clk 0:01:22]} 28. Nc4 {[%clk 0:02:06]}  Rxc6 {[%clk 0:01:15]} 29. dxc6 {[%clk 0:02:07]}  Rc8 {[%clk 0:01:15]} 30. Nxa5 {[%clk 0:02:07]}  Ne7 {[%clk 0:01:15]} 31. Nd3 {[%clk 0:02:06]}  Nxc6 {[%clk 0:01:14]} 32. Rc1 {[%clk 0:01:57]}  Ne7 {[%clk 0:01:13]} 33. Rxc8+ {[%clk 0:01:53]}  Nxc8 {[%clk 0:01:13]} 34. Nc4 {[%clk 0:01:51]}  Kf7 {[%clk 0:01:10]} 35. a4 {[%clk 0:01:39]}  Ke6 {[%clk 0:01:09]} 36. Nb4 {[%clk 0:01:32]}  Na7 {[%clk 0:01:06]} 37. Kf2 {[%clk 0:01:29]}  Bf6 {[%clk 0:01:06]} 38. Ke2 {[%clk 0:01:24]}  Bd8 {[%clk 0:01:06]} 39. Kd3 {[%clk 0:01:24]}  g4 {[%clk 0:01:05]} 40. a5 {[%clk 0:01:15]}  g3 {[%clk 0:01:04]} 41. h3 {[%clk 0:01:11]}  Kd7 {[%clk 0:01:03]} 42. a6 {[%clk 0:01:09]}  Kc7 {[%clk 0:00:59]} 43. Kc3 {[%clk 0:00:59]}  Nb5+ {[%clk 0:00:58]} 44. Kd3 {[%clk 0:00:47]}  Nd4 {[%clk 0:00:57]} 45. Nd5+ {[%clk 0:00:46]}  Kb8 {[%clk 0:00:55]} 46. Nxd6 {[%clk 0:00:42]}  Nxf3 {[%clk 0:00:50]} 47. Nf7 {[%clk 0:00:34]}  Ba5 {[%clk 0:00:47]} 48. Ke2 {[%clk 0:00:21]}  Nd4+ {[%clk 0:00:44]} 49. Kf1 {[%clk 0:00:17]}  Nc6 {[%clk 0:00:42]} 50. Nf6 {[%clk 0:00:16]}  Ka7 {[%clk 0:00:37]} 51. Nxh5 {[%clk 0:00:16]}  Kxa6 {[%clk 0:00:38]} 52. Nf6 {[%clk 0:00:14]}  Bb4 {[%clk 0:00:37]} 53. Nd7 {[%clk 0:00:10]}  Bd6 {[%clk 0:00:29]} 54. Nxd6 {[%clk 0:00:09]} 1-0


[Site "https://www.chess.com"]

[Event "Titled Tuesday Blitz February 07 Early 2023"]
[White "Ozates, Tuna"]
[Black "Sanchez, Robert"]
[WhiteFideId "6354521"]
[BlackFideId "2034360"]
[WhiteElo "2251"]
[BlackElo "1966"]
[Result "1/2-1/2"]
[Round "10"]
[TimeControl "180+2"]
[Date "2023.02.07"]
[WhiteClock "0:02:01"]
[BlackClock "0:00:38"]

1. d4 {[%clk 0:02:57]}  d5 {[%clk 0:02:58]} 2. Bf4 {[%clk 0:02:57]}  e6 {[%clk 0:02:58]} 3. e3 {[%clk 0:02:57]}  Nf6 {[%clk 0:02:58]} 4. Nf3 {[%clk 0:02:52]}  a6 {[%clk 0:02:52]} 5. Bd3 {[%clk 0:02:50]}  c5 {[%clk 0:02:51]} 6. c3 {[%clk 0:02:49]}  Nc6 {[%clk 0:02:52]} 7. O-O {[%clk 0:02:50]}  Bd6 {[%clk 0:02:51]} 8. Bg3 {[%clk 0:02:50]}  Bxg3 {[%clk 0:02:47]} 9. hxg3 {[%clk 0:02:50]}  cxd4 {[%clk 0:02:46]} 10. exd4 {[%clk 0:02:50]}  Qb6 {[%clk 0:02:43]} 11. b4 {[%clk 0:02:47]}  Bd7 {[%clk 0:02:42]} 12. a4 {[%clk 0:02:47]}  Rc8 {[%clk 0:02:41]} 13. a5 {[%clk 0:02:47]}  Qc7 {[%clk 0:02:40]} 14. Nbd2 {[%clk 0:02:47]}  O-O {[%clk 0:02:36]} 15. Nb3 {[%clk 0:02:46]}  e5 {[%clk 0:02:33]} 16. dxe5 {[%clk 0:02:43]}  Nxe5 {[%clk 0:02:33]} 17. Nc5 {[%clk 0:02:41]}  Nxd3 {[%clk 0:02:28]} 18. Qxd3 {[%clk 0:02:40]}  Bb5 {[%clk 0:02:28]} 19. Qd4 {[%clk 0:02:36]}  Bxf1 {[%clk 0:02:28]} 20. Rxf1 {[%clk 0:02:37]}  Ne4 {[%clk 0:02:21]} 21. Nxe4 {[%clk 0:02:35]}  dxe4 {[%clk 0:02:20]} 22. Qxe4 {[%clk 0:02:36]}  Qxc3 {[%clk 0:02:10]} 23. Qxb7 {[%clk 0:02:35]}  Rb8 {[%clk 0:02:03]} 24. Qxa6 {[%clk 0:02:35]}  Qxb4 {[%clk 0:02:03]} 25. Ra1 {[%clk 0:02:32]}  Ra8 {[%clk 0:02:00]} 26. Qe2 {[%clk 0:02:26]}  Rxa5 {[%clk 0:01:58]} 27. Rxa5 {[%clk 0:02:27]}  Qxa5 {[%clk 0:01:57]} 28. g4 {[%clk 0:02:23]}  h6 {[%clk 0:01:54]} 29. g3 {[%clk 0:02:22]}  Qc3 {[%clk 0:01:49]} 30. Kg2 {[%clk 0:02:21]}  Rc8 {[%clk 0:01:46]} 31. g5 {[%clk 0:02:19]}  hxg5 {[%clk 0:01:43]} 32. Nxg5 {[%clk 0:02:19]}  Qc6+ {[%clk 0:01:42]} 33. Qe4 {[%clk 0:02:17]}  Qxe4+ {[%clk 0:01:41]} 34. Nxe4 {[%clk 0:02:18]}  Re8 {[%clk 0:01:37]} 35. Nd6 {[%clk 0:02:17]}  Re6 {[%clk 0:01:37]} 36. Nf5 {[%clk 0:02:17]}  f6 {[%clk 0:01:36]} 37. Ne3 {[%clk 0:02:18]}  Ra6 {[%clk 0:01:35]} 38. Kf3 {[%clk 0:02:19]}  Kf7 {[%clk 0:01:35]} 39. Kg2 {[%clk 0:02:19]}  g6 {[%clk 0:01:34]} 40. Kf3 {[%clk 0:02:20]}  Ra4 {[%clk 0:01:33]} 41. Ng2 {[%clk 0:02:20]}  g5 {[%clk 0:01:33]} 42. Ne3 {[%clk 0:02:21]}  Kg6 {[%clk 0:01:33]} 43. g4 {[%clk 0:02:21]}  Rf4+ {[%clk 0:01:30]} 44. Kg3 {[%clk 0:02:22]}  Kf7 {[%clk 0:01:27]} 45. f3 {[%clk 0:02:21]}  Ke6 {[%clk 0:01:26]} 46. Ng2 {[%clk 0:02:22]}  Ra4 {[%clk 0:01:26]} 47. Ne3 {[%clk 0:02:21]}  Ke5 {[%clk 0:01:23]} 48. Nf5 {[%clk 0:02:19]}  Ra3 {[%clk 0:01:18]} 49. Nh6 {[%clk 0:02:16]}  Kd4 {[%clk 0:01:10]} 50. Ng8 {[%clk 0:02:13]}  Ra6 {[%clk 0:01:05]} 51. Ne7 {[%clk 0:02:13]}  Ke3 {[%clk 0:01:01]} 52. Nd5+ {[%clk 0:02:13]}  Ke2 {[%clk 0:00:59]} 53. f4 {[%clk 0:02:13]}  Ra3+ {[%clk 0:00:58]} 54. Kg2 {[%clk 0:02:13]}  gxf4 {[%clk 0:00:51]} 55. Nxf4+ {[%clk 0:02:11]}  Ke1 {[%clk 0:00:47]} 56. Nh5 {[%clk 0:02:04]}  Ra6 {[%clk 0:00:43]} 57. Kf3 {[%clk 0:02:04]}  Kf1 {[%clk 0:00:42]} 58. Kf4 {[%clk 0:02:04]}  Ra4+ {[%clk 0:00:38]} 59. Kf5 {[%clk 0:02:03]}  Rxg4 {[%clk 0:00:38]} 60. Kxg4 {[%clk 0:02:01]}  f5+ {[%clk 0:00:38]} 61. Kxf5 {[%clk 0:02:01]} 1/2-1/2


[Site "https://www.chess.com"]

[Event "Titled Tuesday Blitz February 07 Early 2023"]
[White "Forgacs, Attila Jr."]
[Black "Reprintsev, Alexander"]
[WhiteFideId "773654"]
[BlackFideId "14100541"]
[WhiteElo "2264"]
[BlackElo "2253"]
[Result "0-1"]
[Round "10"]
[TimeControl "180+2"]
[Date "2023.02.07"]
[WhiteClock "0:00:46"]
[BlackClock "0:01:27"]

1. e4 {[%clk 0:03:00]}  d5 {[%clk 0:02:59]} 2. exd5 {[%clk 0:03:00]}  Qxd5 {[%clk 0:02:59]} 3. Nc3 {[%clk 0:03:00]}  Qa5 {[%clk 0:02:59]} 4. d4 {[%clk 0:03:01]}  Nf6 {[%clk 0:02:59]} 5. Nf3 {[%clk 0:03:02]}  Nc6 {[%clk 0:02:58]} 6. Bd2 {[%clk 0:03:02]}  a6 {[%clk 0:02:57]} 7. Bc4 {[%clk 0:03:00]}  Qh5 {[%clk 0:02:55]} 8. O-O {[%clk 0:02:52]}  Bg4 {[%clk 0:02:53]} 9. Bf4 {[%clk 0:02:45]}  Bxf3 {[%clk 0:02:53]} 10. Qxf3 {[%clk 0:02:42]}  Qxf3 {[%clk 0:02:53]} 11. gxf3 {[%clk 0:02:43]}  Nxd4 {[%clk 0:02:48]} 12. Bxc7 {[%clk 0:02:40]}  Rc8 {[%clk 0:02:47]} 13. Bb6 {[%clk 0:02:30]}  Rxc4 {[%clk 0:02:45]} 14. Rad1 {[%clk 0:02:25]}  e5 {[%clk 0:02:44]} 15. Kg2 {[%clk 0:02:13]}  Bc5 {[%clk 0:02:37]} 16. Bc7 {[%clk 0:02:08]}  Bb4 {[%clk 0:02:31]} 17. Bxe5 {[%clk 0:02:07]}  Bxc3 {[%clk 0:02:30]} 18. bxc3 {[%clk 0:02:06]}  Nc6 {[%clk 0:02:29]} 19. Rfe1 {[%clk 0:01:53]}  O-O {[%clk 0:02:29]} 20. Bd6 {[%clk 0:01:49]}  Rc8 {[%clk 0:02:27]} 21. Re3 {[%clk 0:01:46]}  h6 {[%clk 0:02:22]} 22. Kf1 {[%clk 0:01:36]}  Ne8 {[%clk 0:02:18]} 23. Bg3 {[%clk 0:01:35]}  g5 {[%clk 0:02:10]} 24. Ke2 {[%clk 0:01:34]}  Ng7 {[%clk 0:02:10]} 25. Rd5 {[%clk 0:01:32]}  Ne6 {[%clk 0:02:07]} 26. Kd3 {[%clk 0:01:27]}  b5 {[%clk 0:02:00]} 27. Re1 {[%clk 0:01:15]}  Ne7 {[%clk 0:01:58]} 28. Rd7 {[%clk 0:01:12]}  Rxc3+ {[%clk 0:01:58]} 29. Ke2 {[%clk 0:01:11]}  Nf5 {[%clk 0:01:53]} 30. Be5 {[%clk 0:01:06]}  Rxc2+ {[%clk 0:01:53]} 31. Kf1 {[%clk 0:01:07]}  Nh4 {[%clk 0:01:46]} 32. Red1 {[%clk 0:01:04]}  Nxf3 {[%clk 0:01:43]} 33. Bf6 {[%clk 0:01:05]}  Rc1 {[%clk 0:01:37]} 34. Kg2 {[%clk 0:00:59]}  Nh4+ {[%clk 0:01:36]} 35. Kh3 {[%clk 0:00:59]}  Rxd1 {[%clk 0:01:29]} 36. Rxd1 {[%clk 0:01:00]}  Kh7 {[%clk 0:01:29]} 37. Rd7 {[%clk 0:00:59]}  Kg6 {[%clk 0:01:29]} 38. Be5 {[%clk 0:00:59]}  Rc5 {[%clk 0:01:28]} 39. Bb8 {[%clk 0:00:51]}  Rc3+ {[%clk 0:01:28]} 40. Bg3 {[%clk 0:00:46]}  Nf4+ {[%clk 0:01:27]} 0-1


[Site "https://www.chess.com"]

[Event "Titled Tuesday Blitz February 07 Early 2023"]
[White "Kumala, Aleksander"]
[Black "Ansh M Shah"]
[WhiteFideId "1141880"]
[BlackFideId "25033379"]
[WhiteElo "2165"]
[BlackElo "2171"]
[Result "1-0"]
[Round "10"]
[TimeControl "180+2"]
[Date "2023.02.07"]
[WhiteClock "0:00:12"]
[BlackClock "0:00:02"]

1. d4 {[%clk 0:03:00]}  Nf6 {[%clk 0:02:56]} 2. Bg5 {[%clk 0:03:00]}  e6 {[%clk 0:02:57]} 3. Nd2 {[%clk 0:03:00]}  d5 {[%clk 0:02:58]} 4. e3 {[%clk 0:03:00]}  Be7 {[%clk 0:02:58]} 5. Bd3 {[%clk 0:03:00]}  O-O {[%clk 0:02:58]} 6. c3 {[%clk 0:02:59]}  c5 {[%clk 0:02:59]} 7. f4 {[%clk 0:02:59]}  Nbd7 {[%clk 0:02:59]} 8. Ngf3 {[%clk 0:02:58]}  b6 {[%clk 0:03:00]} 9. Ne5 {[%clk 0:02:42]}  Bb7 {[%clk 0:02:57]} 10. Bxf6 {[%clk 0:02:39]}  Bxf6 {[%clk 0:02:51]} 11. Qf3 {[%clk 0:02:28]}  Bxe5 {[%clk 0:02:35]} 12. fxe5 {[%clk 0:02:27]}  f5 {[%clk 0:02:36]} 13. O-O-O {[%clk 0:02:19]}  Bc6 {[%clk 0:02:33]} 14. g4 {[%clk 0:02:15]}  g6 {[%clk 0:02:25]} 15. gxf5 {[%clk 0:02:15]}  gxf5 {[%clk 0:02:26]} 16. Rdg1+ {[%clk 0:02:07]}  Kh8 {[%clk 0:02:26]} 17. Qh5 {[%clk 0:02:01]}  Qe7 {[%clk 0:02:25]} 18. Rg3 {[%clk 0:01:52]}  Rg8 {[%clk 0:02:24]} 19. Nf3 {[%clk 0:01:46]}  Nf8 {[%clk 0:01:47]} 20. Rxg8+ {[%clk 0:01:40]}  Kxg8 {[%clk 0:01:48]} 21. Rg1+ {[%clk 0:01:39]}  Kh8 {[%clk 0:01:47]} 22. Ng5 {[%clk 0:01:39]}  Be8 {[%clk 0:01:46]} 23. Qh6 {[%clk 0:01:36]}  Bg6 {[%clk 0:01:47]} 24. Rg3 {[%clk 0:01:12]}  f4 {[%clk 0:01:30]} 25. exf4 {[%clk 0:01:11]}  Bxd3 {[%clk 0:01:28]} 26. Rxd3 {[%clk 0:01:11]}  cxd4 {[%clk 0:01:29]} 27. cxd4 {[%clk 0:01:10]}  Rc8+ {[%clk 0:01:29]} 28. Kb1 {[%clk 0:01:10]}  Qg7 {[%clk 0:01:03]} 29. Rg3 {[%clk 0:00:57]}  Rc7 {[%clk 0:00:16]} 30. Qxg7+ {[%clk 0:00:57]}  Rxg7 {[%clk 0:00:16]} 31. Kc2 {[%clk 0:00:49]}  Ng6 {[%clk 0:00:14]} 32. Nxe6 {[%clk 0:00:47]}  Rf7 {[%clk 0:00:14]} 33. Rf3 {[%clk 0:00:42]}  Nh4 {[%clk 0:00:15]} 34. Rf2 {[%clk 0:00:40]}  Nf5 {[%clk 0:00:16]} 35. Kd3 {[%clk 0:00:38]}  h6 {[%clk 0:00:15]} 36. b4 {[%clk 0:00:29]}  Re7 {[%clk 0:00:15]} 37. Nd8 {[%clk 0:00:29]}  Rd7 {[%clk 0:00:14]} 38. Nc6 {[%clk 0:00:29]}  Rc7 {[%clk 0:00:15]} 39. b5 {[%clk 0:00:29]}  a6 {[%clk 0:00:15]} 40. a4 {[%clk 0:00:29]}  axb5 {[%clk 0:00:16]} 41. axb5 {[%clk 0:00:30]}  Rc8 {[%clk 0:00:15]} 42. Rg2 {[%clk 0:00:28]}  Ra8 {[%clk 0:00:14]} 43. Rg6 {[%clk 0:00:25]}  Kh7 {[%clk 0:00:13]} 44. Rf6 {[%clk 0:00:25]}  Ra3+ {[%clk 0:00:14]} 45. Kc2 {[%clk 0:00:24]}  Ne3+ {[%clk 0:00:14]} 46. Kc1 {[%clk 0:00:20]}  Rb3 {[%clk 0:00:07]} 47. e6 {[%clk 0:00:18]}  Kg7 {[%clk 0:00:07]} 48. Rf7+ {[%clk 0:00:18]}  Kg8 {[%clk 0:00:07]} 49. Ne7+ {[%clk 0:00:18]}  Kh8 {[%clk 0:00:07]} 50. Ng6+ {[%clk 0:00:18]}  Kg8 {[%clk 0:00:08]} 51. Ne5 {[%clk 0:00:16]}  Rc3+ {[%clk 0:00:04]} 52. Kd2 {[%clk 0:00:16]}  Ra3 {[%clk 0:00:02]} 53. e7 {[%clk 0:00:15]}  Nc4+ {[%clk 0:00:02]} 54. Ke2 {[%clk 0:00:12]} 1-0


[Site "https://www.chess.com"]

[Event "Titled Tuesday Blitz February 07 Early 2023"]
[White "Melikhov, Evgeny V."]
[Black "matenitian"]
[WhiteFideId "4122046"]
[WhiteElo "2269"]
[BlackElo "2479"]
[Result "1-0"]
[Round "10"]
[TimeControl "180+2"]
[Date "2023.02.07"]
[WhiteClock "0:01:59"]
[BlackClock "0:00:49"]

1. d4 {[%clk 0:03:00]}  Nf6 {[%clk 0:02:59]} 2. c4 {[%clk 0:03:01]}  e6 {[%clk 0:02:58]} 3. Nc3 {[%clk 0:03:01]}  d5 {[%clk 0:02:59]} 4. cxd5 {[%clk 0:03:00]}  exd5 {[%clk 0:02:59]} 5. Bg5 {[%clk 0:03:00]}  c6 {[%clk 0:02:59]} 6. Qc2 {[%clk 0:02:59]}  Nbd7 {[%clk 0:02:58]} 7. e3 {[%clk 0:02:59]}  Be7 {[%clk 0:02:58]} 8. Bd3 {[%clk 0:02:58]}  Nf8 {[%clk 0:02:58]} 9. Nf3 {[%clk 0:02:56]}  Ne6 {[%clk 0:02:58]} 10. Bxf6 {[%clk 0:02:51]}  Bxf6 {[%clk 0:02:55]} 11. O-O {[%clk 0:02:50]}  h6 {[%clk 0:02:51]} 12. b4 {[%clk 0:02:47]}  O-O {[%clk 0:02:43]} 13. b5 {[%clk 0:02:42]}  c5 {[%clk 0:02:41]} 14. dxc5 {[%clk 0:02:42]}  Nxc5 {[%clk 0:02:40]} 15. Rad1 {[%clk 0:02:41]}  Bg4 {[%clk 0:02:31]} 16. Be2 {[%clk 0:02:35]}  Be6 {[%clk 0:02:11]} 17. Nxd5 {[%clk 0:02:24]}  Rc8 {[%clk 0:02:04]} 18. Nxf6+ {[%clk 0:02:20]}  Qxf6 {[%clk 0:02:05]} 19. Nd4 {[%clk 0:02:04]}  Bd5 {[%clk 0:01:55]} 20. Qf5 {[%clk 0:01:59]}  Bc4 {[%clk 0:00:49]} 1-0


[Site "https://www.chess.com"]